[Event "Early-Titled-Tuesday-Blitz-October-24-2023"]
[Site "Chess.com"]
[Date "2023.10.24"]
[Round "7"]
[White "marik_spb"]
[Black "Estrategia_vs_Tactica"]
[Result "0-1"]
[WhiteElo "2402"]
[BlackElo "2277"]
[TimeControl "180+1"]
[EndTime "9:16:11 PDT"]
[Termination "Estrategia_vs_Tactica won by resignation"]

1. e4 {[%clk 0:02:00.8]} 1... d6 {[%clk 0:02:58]} 2. d4 {[%clk 0:02:00.7]} 2...
g6 {[%clk 0:02:56.6]} 3. c4 {[%clk 0:02:00.5]} 3... Bg7 {[%clk 0:02:56.9]} 4.
Be3 {[%clk 0:02:01.2]} 4... Nf6 {[%clk 0:02:56.8]} 5. f3 {[%clk 0:02:00.5]} 5...
O-O {[%clk 0:02:54.3]} 6. Nc3 {[%clk 0:02:00.7]} 6... a6 {[%clk 0:02:54.4]} 7.
Bd3 {[%clk 0:02:00.9]} 7... c5 {[%clk 0:02:51.9]} 8. Nge2 {[%clk 0:01:59.8]}
8... Qa5 {[%clk 0:02:49.3]} 9. O-O {[%clk 0:01:59.2]} 9... Nc6 {[%clk
0:02:42.6]} 10. dxc5 {[%clk 0:01:58.8]} 10... dxc5 {[%clk 0:02:42.1]} 11. Qa4
{[%clk 0:01:59.4]} 11... Qb6 {[%clk 0:02:33.3]} 12. Rab1 {[%clk 0:01:50]} 12...
Rd8 {[%clk 0:02:25.8]} 13. Nd5 {[%clk 0:01:47.7]} 13... Nxd5 {[%clk 0:02:25.7]}
14. cxd5 {[%clk 0:01:46.6]} 14... Nd4 {[%clk 0:02:26.2]} 15. Kh1 {[%clk
0:01:30.1]} 15... Bd7 {[%clk 0:02:21.6]} 16. Qa3 {[%clk 0:01:24.9]} 16... Bb5
{[%clk 0:02:06.9]} 17. Nxd4 {[%clk 0:01:19.6]} 17... cxd4 {[%clk 0:02:04.7]} 18.
Bf2 {[%clk 0:01:14.5]} 18... e6 {[%clk 0:01:45.6]} 19. dxe6 {[%clk 0:01:12.1]}
19... fxe6 {[%clk 0:01:45.5]} 20. Bxb5 {[%clk 0:01:10.5]} 20... Qxb5 {[%clk
0:01:43.4]} 21. Rfd1 {[%clk 0:01:07.8]} 21... Rac8 {[%clk 0:01:29.9]} 22. Qe7
{[%clk 0:00:38.6]} 22... Qd7 {[%clk 0:01:26.5]} 23. Qxd7 {[%clk 0:00:31.8]}
23... Rxd7 {[%clk 0:01:26.6]} 24. Rbc1 {[%clk 0:00:32.7]} 24... Rxc1 {[%clk
0:01:21]} 25. Rxc1 {[%clk 0:00:33.6]} 25... d3 {[%clk 0:01:20.4]} 26. b3 {[%clk
0:00:32.2]} 26... Bh6 {[%clk 0:01:10.6]} 27. Rd1 {[%clk 0:00:31.5]} 27... d2
{[%clk 0:01:10.9]} 28. Kg1 {[%clk 0:00:30.5]} 28... Rc7 {[%clk 0:01:11]} 29. Kf1
{[%clk 0:00:31]} 29... Rc2 {[%clk 0:01:08.9]} 30. a4 {[%clk 0:00:24.9]} 30...
Rb2 {[%clk 0:01:06.7]} 31. Ke2 {[%clk 0:00:20.3]} 31... Rxb3 {[%clk 0:01:06.7]}
32. g3 {[%clk 0:00:20.4]} 32... Rb4 {[%clk 0:01:06]} 33. a5 {[%clk 0:00:19.8]}
33... Ra4 {[%clk 0:01:04.4]} 34. Bb6 {[%clk 0:00:20.1]} 34... Kf7 {[%clk
0:01:02.8]} 35. f4 {[%clk 0:00:20.1]} 35... Rxe4+ {[%clk 0:01:02.5]} 36. Kxd2
{[%clk 0:00:20.7]} 36... Bf8 {[%clk 0:01:02.1]} 37. Rc1 {[%clk 0:00:18.9]} 37...
Bd6 {[%clk 0:00:57.3]} 38. Rc8 {[%clk 0:00:18.9]} 38... Ra4 {[%clk 0:00:55.2]}
39. Kd3 {[%clk 0:00:18.1]} 39... h5 {[%clk 0:00:53.7]} 40. Rd8 {[%clk 0:00:16]}
40... Ke7 {[%clk 0:00:53.4]} 41. Rg8 {[%clk 0:00:16.5]} 41... Kf7 {[%clk
0:00:52.6]} 42. Rd8 {[%clk 0:00:17]} 42... Bb4 {[%clk 0:00:47.9]} 43. Rd7+
{[%clk 0:00:15.8]} 43... Kf6 {[%clk 0:00:26.8]} 44. h3 {[%clk 0:00:15.7]} 44...
e5 {[%clk 0:00:20.3]} 45. fxe5+ {[%clk 0:00:12.9]} 45... Kxe5 {[%clk 0:00:20.9]}
46. Rxb7 {[%clk 0:00:11.5]} 46... Bxa5 {[%clk 0:00:21.2]} 47. Bxa5 {[%clk
0:00:05.8]} 47... Rxa5 {[%clk 0:00:21.4]} 48. Re7+ {[%clk 0:00:06.5]} 48... Kf6
{[%clk 0:00:21.3]} 49. Rb7 {[%clk 0:00:06.2]} 49... Ra3+ {[%clk 0:00:21.4]} 50.
Ke4 {[%clk 0:00:06.7]} 50... Rxg3 {[%clk 0:00:21.5]} 51. Kf4 {[%clk 0:00:03.6]}
51... Rxh3 {[%clk 0:00:20.8]} 52. Rb6+ {[%clk 0:00:04.2]} 52... Kg7 {[%clk
0:00:21.2]} 53. Rxa6 {[%clk 0:00:04.5]} 53... Rb3 {[%clk 0:00:21.9]} 54. Kg5
{[%clk 0:00:03.3]} 54... Rb5+ {[%clk 0:00:21.6]} 55. Kh4 {[%clk 0:00:03.4]}
55... Kh6 {[%clk 0:00:22.2]} 56. Rc6 {[%clk 0:00:03.5]} 56... Rb4+ {[%clk
0:00:22.5]} 57. Kg3 {[%clk 0:00:04.2]} 57... Rb5 {[%clk 0:00:21.2]} 58. Ra6
{[%clk 0:00:03.2]} 58... Kg5 {[%clk 0:00:21.2]} 59. Rc6 {[%clk 0:00:02.9]} 59...
Rb3+ {[%clk 0:00:21.4]} 60. Kg2 {[%clk 0:00:02.7]} 60... Rb4 {[%clk 0:00:18.6]}
61. Rc4 {[%clk 0:00:03.6]} 61... Rxc4 {[%clk 0:00:18.1]} 0-1

[Event "Early-Titled-Tuesday-Blitz-October-24-2023"]
[Site "Chess.com"]
[Date "2023.10.24"]
[Round "7"]
[White "Nf3c5"]
[Black "AlexandraSamaganova"]
[Result "0-1"]
[WhiteElo "2596"]
[BlackElo "2336"]
[TimeControl "180+1"]
[EndTime "9:16:14 PDT"]
[Termination "AlexandraSamaganova won on time"]

1. d4 {[%clk 0:03:00.9]} 1... Nf6 {[%clk 0:02:59.1]} 2. Nf3 {[%clk 0:03:00.6]}
2... e6 {[%clk 0:02:58.9]} 3. Bg5 {[%clk 0:02:59.2]} 3... b6 {[%clk 0:02:57]} 4.
a4 {[%clk 0:02:52.1]} 4... a5 {[%clk 0:02:53.4]} 5. Na3 {[%clk 0:02:44.9]} 5...
Bb7 {[%clk 0:02:51.6]} 6. e3 {[%clk 0:02:43.3]} 6... Be7 {[%clk 0:02:50]} 7. Nb5
{[%clk 0:02:43.1]} 7... O-O {[%clk 0:02:46.2]} 8. Bd3 {[%clk 0:02:41.7]} 8... h6
{[%clk 0:02:44.7]} 9. Bf4 {[%clk 0:02:35.6]} 9... Na6 {[%clk 0:02:35.9]} 10. h3
{[%clk 0:02:34.6]} 10... d6 {[%clk 0:02:28.4]} 11. c3 {[%clk 0:02:31.5]} 11...
Ne4 {[%clk 0:02:26.3]} 12. Qc2 {[%clk 0:02:24.1]} 12... f5 {[%clk 0:02:25.8]}
13. Nd2 {[%clk 0:02:15.5]} 13... Nxd2 {[%clk 0:02:06.8]} 14. Qxd2 {[%clk
0:02:13.6]} 14... Bf6 {[%clk 0:01:57.1]} 15. Rg1 {[%clk 0:02:03.1]} 15... e5
{[%clk 0:01:49.7]} 16. Bh2 {[%clk 0:02:00.4]} 16... e4 {[%clk 0:01:35.8]} 17.
Bc4+ {[%clk 0:01:57.8]} 17... Kh8 {[%clk 0:01:35.9]} 18. O-O-O {[%clk 0:01:52]}
18... Nb8 {[%clk 0:01:20.5]} 19. g4 {[%clk 0:01:38.6]} 19... fxg4 {[%clk
0:01:12.8]} 20. Rxg4 {[%clk 0:01:37.3]} 20... Nd7 {[%clk 0:01:06.9]} 21. Rdg1
{[%clk 0:01:35.6]} 21... Rc8 {[%clk 0:00:51.5]} 22. Bb3 {[%clk 0:01:09.2]} 22...
Qe7 {[%clk 0:00:45.3]} 23. Bc2 {[%clk 0:01:00.3]} 23... Rfe8 {[%clk 0:00:40.6]}
24. Bf4 {[%clk 0:00:54.8]} 24... Qf8 {[%clk 0:00:34.9]} 25. Rg6 {[%clk
0:00:48.3]} 25... Bd5 {[%clk 0:00:22.3]} 26. Bxh6 {[%clk 0:00:43.6]} 26... gxh6
{[%clk 0:00:20.7]} 27. Qe2 {[%clk 0:00:42]} 27... Bf7 {[%clk 0:00:14.2]} 28.
R6g2 {[%clk 0:00:24.7]} 28... Qe7 {[%clk 0:00:10.2]} 29. f4 {[%clk 0:00:20.5]}
29... Rg8 {[%clk 0:00:09.8]} 30. f5 {[%clk 0:00:10.9]} 30... Rxg2 {[%clk
0:00:09.1]} 31. Rxg2 {[%clk 0:00:11.4]} 31... Rg8 {[%clk 0:00:09.2]} 32. Rg4
{[%clk 0:00:12.3]} 32... Rxg4 {[%clk 0:00:08.5]} 33. Qxg4 {[%clk 0:00:12.8]}
33... Bg5 {[%clk 0:00:08.8]} 34. Kd2 {[%clk 0:00:12.3]} 34... c6 {[%clk
0:00:07.5]} 35. Na7 {[%clk 0:00:07.7]} 35... Nf6 {[%clk 0:00:07.6]} 36. Nxc6
{[%clk 0:00:03]} 36... Nxg4 {[%clk 0:00:06.4]} 37. Nxe7 {[%clk 0:00:03.6]} 37...
Bxe7 {[%clk 0:00:06.2]} 38. hxg4 {[%clk 0:00:03.9]} 38... h5 {[%clk 0:00:06.1]}
39. gxh5 {[%clk 0:00:03.2]} 39... d5 {[%clk 0:00:05.4]} 40. Bd1 {[%clk
0:00:02.2]} 40... Kg7 {[%clk 0:00:05]} 41. b3 {[%clk 0:00:02.7]} 41... Kh6
{[%clk 0:00:05]} 42. Be2 {[%clk 0:00:02.8]} 42... Bxh5 {[%clk 0:00:04.6]} 43.
Bb5 {[%clk 0:00:03.7]} 43... Bf7 {[%clk 0:00:02.9]} 44. c4 {[%clk 0:00:04.2]}
44... dxc4 {[%clk 0:00:03]} 45. bxc4 {[%clk 0:00:04.9]} 45... Bb4+ {[%clk
0:00:02.9]} 46. Kc2 {[%clk 0:00:05.1]} 46... Kg5 {[%clk 0:00:03.3]} 47. Ba6
{[%clk 0:00:05.2]} 47... Kxf5 {[%clk 0:00:03.4]} 48. Kb3 {[%clk 0:00:06.1]}
48... Kf6 {[%clk 0:00:03.5]} 49. Bb7 {[%clk 0:00:06.3]} 49... Bg6 {[%clk
0:00:03.3]} 50. Bc6 {[%clk 0:00:06.2]} 50... Ke7 {[%clk 0:00:03.6]} 51. Bb7
{[%clk 0:00:06.1]} 51... Kd6 {[%clk 0:00:04]} 52. Ba8 {[%clk 0:00:07]} 52... Bd2
{[%clk 0:00:04.3]} 53. Bb7 {[%clk 0:00:01.8]} 53... Bxe3 {[%clk 0:00:04.6]} 54.
d5 {[%clk 0:00:02.7]} 54... Bc5 {[%clk 0:00:04.6]} 55. Kc3 {[%clk 0:00:02.8]}
55... e3 {[%clk 0:00:04.4]} 56. Bc8 {[%clk 0:00:02.3]} 56... Bh5 {[%clk
0:00:03.5]} 0-1

[Event "Early-Titled-Tuesday-Blitz-October-24-2023"]
[Site "Chess.com"]
[Date "2023.10.24"]
[Round "7"]
[White "brm72"]
[Black "Orujov2008"]
[Result "1-0"]
[WhiteElo "2577"]
[BlackElo "2733"]
[TimeControl "180+1"]
[EndTime "9:16:17 PDT"]
[Termination "brm72 won by resignation"]

1. e4 {[%clk 0:03:00.9]} 1... e5 {[%clk 0:03:00]} 2. Nf3 {[%clk 0:03:00.9]} 2...
Nf6 {[%clk 0:03:00.3]} 3. Nxe5 {[%clk 0:03:00.8]} 3... Nxe4 {[%clk 0:03:00.7]}
4. Qe2 {[%clk 0:02:58.2]} 4... Qe7 {[%clk 0:03:00.8]} 5. Qxe4 {[%clk 0:02:56.3]}
5... d6 {[%clk 0:03:00.9]} 6. d4 {[%clk 0:02:56.3]} 6... dxe5 {[%clk 0:03:00.7]}
7. dxe5 {[%clk 0:02:55.4]} 7... Nc6 {[%clk 0:03:00.9]} 8. Nc3 {[%clk 0:02:55.1]}
8... Qxe5 {[%clk 0:03:00.7]} 9. Qxe5+ {[%clk 0:02:54.1]} 9... Nxe5 {[%clk
0:03:01.6]} 10. Bf4 {[%clk 0:02:54.4]} 10... Bd6 {[%clk 0:03:00.8]} 11. Bg3
{[%clk 0:02:38.4]} 11... f6 {[%clk 0:02:53.2]} 12. O-O-O {[%clk 0:02:34.8]}
12... a6 {[%clk 0:02:49.9]} 13. Ne4 {[%clk 0:02:30.4]} 13... Be7 {[%clk
0:02:49.9]} 14. Bxe5 {[%clk 0:02:25.8]} 14... fxe5 {[%clk 0:02:50.8]} 15. Bc4
{[%clk 0:02:26.1]} 15... Bf5 {[%clk 0:02:48.4]} 16. Rhe1 {[%clk 0:02:24.5]}
16... Rd8 {[%clk 0:02:43.7]} 17. f3 {[%clk 0:02:20.5]} 17... Rxd1+ {[%clk
0:02:36.4]} 18. Kxd1 {[%clk 0:02:15.9]} 18... h5 {[%clk 0:02:32.7]} 19. Ng3
{[%clk 0:02:06.1]} 19... Bg6 {[%clk 0:02:32.9]} 20. Rxe5 {[%clk 0:02:05]} 20...
h4 {[%clk 0:02:33.3]} 21. Ne4 {[%clk 0:01:54.8]} 21... b5 {[%clk 0:02:20.1]} 22.
Bd5 {[%clk 0:01:51.1]} 22... Kd8 {[%clk 0:02:14.2]} 23. Bb7 {[%clk 0:01:44.9]}
23... Bxe4 {[%clk 0:02:09.4]} 24. Rxe4 {[%clk 0:01:40.6]} 24... Rh6 {[%clk
0:02:10.3]} 25. Rd4+ {[%clk 0:01:34]} 25... Ke8 {[%clk 0:02:05]} 26. h3 {[%clk
0:01:25.5]} 26... Rg6 {[%clk 0:02:02]} 27. f4 {[%clk 0:01:22.2]} 27... Bc5
{[%clk 0:01:56.9]} 28. Re4+ {[%clk 0:01:19.3]} 28... Kd7 {[%clk 0:01:54.9]} 29.
Re5 {[%clk 0:01:09.9]} 29... Bd6 {[%clk 0:01:52]} 30. Rf5 {[%clk 0:01:08]} 30...
c6 {[%clk 0:01:50.9]} 31. Rg5 {[%clk 0:00:54.7]} 31... Rf6 {[%clk 0:01:36.1]}
32. Rxg7+ {[%clk 0:00:53.6]} 32... Kd8 {[%clk 0:01:36.5]} 33. Bxc6 {[%clk
0:00:40.5]} 33... Bxf4 {[%clk 0:01:34.3]} 34. Bf3 {[%clk 0:00:38.7]} 34... Rd6+
{[%clk 0:01:29.8]} 35. Ke1 {[%clk 0:00:33.2]} 35... b4 {[%clk 0:01:30.2]} 36.
Rb7 {[%clk 0:00:29.2]} 36... a5 {[%clk 0:01:26.9]} 37. Rb5 {[%clk 0:00:27.9]}
37... a4 {[%clk 0:01:22.9]} 38. Rd5 {[%clk 0:00:23.2]} 38... Rxd5 {[%clk
0:01:17.2]} 39. Bxd5 {[%clk 0:00:24.1]} 39... Be5 {[%clk 0:01:17.9]} 40. b3
{[%clk 0:00:21.2]} 40... a3 {[%clk 0:01:18]} 41. Ke2 {[%clk 0:00:20.9]} 41...
Bc3 {[%clk 0:01:13.4]} 42. Kf3 {[%clk 0:00:20.6]} 42... Be1 {[%clk 0:01:12.1]}
43. Be6 {[%clk 0:00:20]} 43... Ke7 {[%clk 0:01:11.9]} 44. Bc4 {[%clk 0:00:18.9]}
44... Kf6 {[%clk 0:01:12]} 45. Bd3 {[%clk 0:00:17.6]} 45... Kg7 {[%clk
0:01:12.2]} 46. Be4 {[%clk 0:00:17.7]} 46... Kh6 {[%clk 0:01:12.1]} 47. c4
{[%clk 0:00:17.2]} 47... bxc3 {[%clk 0:01:08.5]} 48. Bc2 {[%clk 0:00:17.6]}
48... Kg7 {[%clk 0:01:05.4]} 49. b4 {[%clk 0:00:14.1]} 49... Kf6 {[%clk
0:01:05.5]} 50. Ke4 {[%clk 0:00:11.1]} 50... Ke6 {[%clk 0:00:59.2]} 51. Kd4
{[%clk 0:00:11.5]} 51... Kd6 {[%clk 0:00:58.4]} 52. Kc4 {[%clk 0:00:11.9]} 52...
Kc6 {[%clk 0:00:58.1]} 53. Kb3 {[%clk 0:00:11.4]} 53... Kb5 {[%clk 0:00:43.7]}
54. Kxa3 {[%clk 0:00:11.6]} 54... Bd2 {[%clk 0:00:14.4]} 55. Kb3 {[%clk
0:00:11.2]} 55... Kb6 {[%clk 0:00:13.7]} 56. a4 {[%clk 0:00:11.8]} 56... Be1
{[%clk 0:00:13.4]} 57. Kc4 {[%clk 0:00:12]} 57... Bd2 {[%clk 0:00:12.9]} 58. a5+
{[%clk 0:00:11.6]} 58... Ka6 {[%clk 0:00:13]} 59. Kc5 {[%clk 0:00:11.5]} 59...
Be3+ {[%clk 0:00:12.8]} 60. Kc6 {[%clk 0:00:11.2]} 60... Ka7 {[%clk 0:00:11.1]}
61. b5 {[%clk 0:00:11]} 61... Kb8 {[%clk 0:00:11]} 62. b6 {[%clk 0:00:11.1]}
62... Bd4 {[%clk 0:00:10.8]} 63. a6 {[%clk 0:00:10.8]} 63... Be5 {[%clk
0:00:08.5]} 64. a7+ {[%clk 0:00:09.7]} 64... Ka8 {[%clk 0:00:08.8]} 65. Kb5
{[%clk 0:00:09.8]} 1-0

[Event "Early-Titled-Tuesday-Blitz-October-24-2023"]
[Site "Chess.com"]
[Date "2023.10.24"]
[Round "7"]
[White "chess_blitz00"]
[Black "CSB7"]
[Result "0-1"]
[WhiteElo "2495"]
[BlackElo "2713"]
[TimeControl "180+1"]
[EndTime "9:16:18 PDT"]
[Termination "CSB7 won on time"]

1. Nf3 {[%clk 0:02:51.9]} 1... d5 {[%clk 0:02:56.1]} 2. b3 {[%clk 0:02:52.1]}
2... Nf6 {[%clk 0:02:50.4]} 3. Bb2 {[%clk 0:02:51.9]} 3... Bf5 {[%clk
0:02:47.2]} 4. h3 {[%clk 0:02:41.2]} 4... h6 {[%clk 0:02:42.6]} 5. e3 {[%clk
0:02:36.2]} 5... e6 {[%clk 0:02:42.3]} 6. Bd3 {[%clk 0:02:29.5]} 6... Bxd3
{[%clk 0:02:37.6]} 7. cxd3 {[%clk 0:02:30.4]} 7... Nbd7 {[%clk 0:02:35.8]} 8. d4
{[%clk 0:02:29.3]} 8... Bd6 {[%clk 0:02:34.1]} 9. O-O {[%clk 0:02:28.2]} 9...
O-O {[%clk 0:02:33.8]} 10. Nc3 {[%clk 0:02:27.4]} 10... Ne4 {[%clk 0:02:22]} 11.
d3 {[%clk 0:01:56.9]} 11... Nxc3 {[%clk 0:02:21.4]} 12. Bxc3 {[%clk 0:01:57.8]}
12... Qf6 {[%clk 0:02:17.1]} 13. Rc1 {[%clk 0:01:12.6]} 13... Qg6 {[%clk
0:02:14.9]} 14. Qe2 {[%clk 0:01:02.5]} 14... c6 {[%clk 0:02:09.5]} 15. Nd2
{[%clk 0:00:40.9]} 15... f5 {[%clk 0:02:07.6]} 16. f4 {[%clk 0:00:40.5]} 16...
Kh7 {[%clk 0:01:37.2]} 17. Kh1 {[%clk 0:00:37.9]} 17... Nf6 {[%clk 0:01:34]} 18.
Rg1 {[%clk 0:00:34.2]} 18... Qf7 {[%clk 0:01:30.5]} 19. Nf3 {[%clk 0:00:30.9]}
19... Qh5 {[%clk 0:01:22.6]} 20. Rc2 {[%clk 0:00:20.8]} 20... g5 {[%clk
0:01:21.7]} 21. Ne5 {[%clk 0:00:14.3]} 21... g4 {[%clk 0:01:20.6]} 22. Be1
{[%clk 0:00:07.2]} 22... Rg8 {[%clk 0:01:16.5]} 23. h4 {[%clk 0:00:06.5]} 23...
Bxe5 {[%clk 0:01:03.6]} 24. dxe5 {[%clk 0:00:05.9]} 24... g3 {[%clk 0:01:04.1]}
25. Qxh5 {[%clk 0:00:03.2]} 25... Nxh5 {[%clk 0:01:05]} 26. Rf1 {[%clk
0:00:03.1]} 26... Rg4 {[%clk 0:01:03.4]} 27. Kg1 {[%clk 0:00:02.7]} 27... Rxh4
{[%clk 0:00:47.5]} 28. Rf3 {[%clk 0:00:02.3]} 28... Rg4 {[%clk 0:00:44.1]} 29.
d4 {[%clk 0:00:02.1]} 29... Kg6 {[%clk 0:00:39.6]} 30. b4 {[%clk 0:00:02.5]}
30... a6 {[%clk 0:00:38.3]} 31. a4 {[%clk 0:00:02.6]} 31... Kf7 {[%clk 0:00:39]}
32. a5 {[%clk 0:00:02.3]} 32... Ke7 {[%clk 0:00:38.9]} 33. Rb2 {[%clk
0:00:02.7]} 33... Kd7 {[%clk 0:00:38.9]} 34. Rc2 {[%clk 0:00:03.5]} 34... Kc7
{[%clk 0:00:38.9]} 35. Rc5 {[%clk 0:00:04]} 35... b6 {[%clk 0:00:33.4]} 36.
axb6+ {[%clk 0:00:04.9]} 36... Kxb6 {[%clk 0:00:34]} 37. Ra5 {[%clk 0:00:05.3]}
37... Rgg8 {[%clk 0:00:27.3]} 38. Kf1 {[%clk 0:00:04.2]} 38... Rg4 {[%clk
0:00:26.2]} 39. Ke2 {[%clk 0:00:02.6]} 39... Rh4 {[%clk 0:00:22.1]} 40. Rf1
{[%clk 0:00:03]} 40... Rh2 {[%clk 0:00:17.2]} 41. Kf3 {[%clk 0:00:03.4]} 41...
Rh4 {[%clk 0:00:06.2]} 42. Ra1 {[%clk 0:00:03.8]} 42... Kb7 {[%clk 0:00:05.9]}
43. Bd2 {[%clk 0:00:04]} 43... Rg8 {[%clk 0:00:05.5]} 44. Rh1 {[%clk 0:00:03.9]}
44... Rgg4 {[%clk 0:00:05.8]} 45. Rxh4 {[%clk 0:00:03.4]} 45... Rxh4 {[%clk
0:00:06.7]} 46. Rb1 {[%clk 0:00:02]} 46... Rh2 {[%clk 0:00:06.3]} 47. Rg1 {[%clk
0:00:02.4]} 47... Kb6 {[%clk 0:00:06.2]} 48. Be1 {[%clk 0:00:02.9]} 48... Rh4
{[%clk 0:00:05]} 49. Bxg3 {[%clk 0:00:03]} 49... Nxg3 {[%clk 0:00:04.4]} 50.
Kxg3 {[%clk 0:00:03.9]} 50... Rg4+ {[%clk 0:00:04.7]} 51. Kf3 {[%clk 0:00:04.6]}
51... Kb5 {[%clk 0:00:05.3]} 52. Ra1 {[%clk 0:00:03.6]} 52... h5 {[%clk
0:00:04.8]} 53. Ra5+ {[%clk 0:00:03.9]} 53... Kb6 {[%clk 0:00:05.3]} 54. Ra1
{[%clk 0:00:02.6]} 54... h4 {[%clk 0:00:03.9]} 55. Rh1 {[%clk 0:00:03]} 55...
Kb5 {[%clk 0:00:03.7]} 56. Ra1 {[%clk 0:00:02.9]} 56... Rg3+ {[%clk 0:00:02.9]}
57. Kf2 {[%clk 0:00:02.9]} 57... Rg6 {[%clk 0:00:03.1]} 58. Ra5+ {[%clk
0:00:02]} 58... Kb6 {[%clk 0:00:03.4]} 59. Ra1 {[%clk 0:00:02.6]} 59... Rg8
{[%clk 0:00:03.8]} 60. Rh1 {[%clk 0:00:03]} 60... Rh8 {[%clk 0:00:02]} 61. Kf3
{[%clk 0:00:02.1]} 61... Kb5 {[%clk 0:00:02.4]} 62. Ra1 {[%clk 0:00:01.8]} 62...
h3 {[%clk 0:00:02.6]} 63. Ra5+ {[%clk 0:00:01.9]} 63... Kb6 {[%clk 0:00:02.5]}
0-1

[Event "Early-Titled-Tuesday-Blitz-October-24-2023"]
[Site "Chess.com"]
[Date "2023.10.24"]
[Round "7"]
[White "Legendinunknown"]
[Black "the_chess_child"]
[Result "1-0"]
[WhiteElo "2817"]
[BlackElo "2941"]
[TimeControl "180+1"]
[EndTime "9:16:23 PDT"]
[Termination "Legendinunknown won by checkmate"]

1. d4 {[%clk 0:02:57.2]} 1... Nf6 {[%clk 0:03:00.5]} 2. c4 {[%clk 0:02:57]} 2...
g6 {[%clk 0:03:00.9]} 3. Nc3 {[%clk 0:02:56.9]} 3... Bg7 {[%clk 0:03:01.4]} 4.
e4 {[%clk 0:02:57.5]} 4... d6 {[%clk 0:03:02]} 5. Nf3 {[%clk 0:02:57.9]} 5...
O-O {[%clk 0:03:02.5]} 6. Be2 {[%clk 0:02:58.4]} 6... e5 {[%clk 0:03:02.6]} 7.
d5 {[%clk 0:02:58.8]} 7... a5 {[%clk 0:03:02.2]} 8. Bg5 {[%clk 0:02:58.6]} 8...
h6 {[%clk 0:03:02]} 9. Be3 {[%clk 0:02:58.8]} 9... Ng4 {[%clk 0:03:00.9]} 10.
Bc1 {[%clk 0:02:59.4]} 10... Na6 {[%clk 0:02:57.2]} 11. h3 {[%clk 0:02:56.5]}
11... Nf6 {[%clk 0:02:57.2]} 12. Be3 {[%clk 0:02:57.2]} 12... Nd7 {[%clk
0:02:51.7]} 13. g4 {[%clk 0:02:55.8]} 13... Ndc5 {[%clk 0:02:51.4]} 14. Nd2
{[%clk 0:02:55.7]} 14... f5 {[%clk 0:02:47.9]} 15. gxf5 {[%clk 0:02:50.9]} 15...
gxf5 {[%clk 0:02:48.8]} 16. f3 {[%clk 0:02:45.6]} 16... Bd7 {[%clk 0:02:25.6]}
17. a3 {[%clk 0:02:38.5]} 17... a4 {[%clk 0:02:24.2]} 18. Qc2 {[%clk 0:02:38.6]}
18... Qh4+ {[%clk 0:02:15.3]} 19. Bf2 {[%clk 0:02:37.9]} 19... Qe7 {[%clk
0:02:15.3]} 20. O-O-O {[%clk 0:02:36.1]} 20... f4 {[%clk 0:02:11.6]} 21. Kb1
{[%clk 0:02:31.5]} 21... Kh7 {[%clk 0:02:11.4]} 22. Nb5 {[%clk 0:02:20.9]} 22...
Bf6 {[%clk 0:01:48.8]} 23. h4 {[%clk 0:02:14.6]} 23... Rg8 {[%clk 0:01:46.2]}
24. Bf1 {[%clk 0:02:14.3]} 24... Rg7 {[%clk 0:01:38.2]} 25. Ka2 {[%clk
0:02:14.3]} 25... Rag8 {[%clk 0:01:37.6]} 26. Nb1 {[%clk 0:02:13.8]} 26... Be8
{[%clk 0:01:18.2]} 27. N1c3 {[%clk 0:02:11.6]} 27... Bh5 {[%clk 0:01:17.3]} 28.
Rh3 {[%clk 0:01:59.5]} 28... Rg2 {[%clk 0:01:11.2]} 29. Bxg2 {[%clk 0:01:46.9]}
29... Rxg2 {[%clk 0:01:12.1]} 30. Qe2 {[%clk 0:01:43.1]} 30... Qg7 {[%clk
0:01:00.5]} 31. Rhh1 {[%clk 0:01:40.4]} 31... Kh8 {[%clk 0:00:41.1]} 32. Rdg1
{[%clk 0:01:36.7]} 32... Kh7 {[%clk 0:00:36.1]} 33. Re1 {[%clk 0:00:57]} 33...
Kh8 {[%clk 0:00:32.1]} 34. Rhg1 {[%clk 0:00:56.5]} 34... Kh7 {[%clk 0:00:25.1]}
35. Nb1 {[%clk 0:00:47]} 35... Kh8 {[%clk 0:00:23.9]} 36. Nd2 {[%clk 0:00:46.7]}
36... Be7 {[%clk 0:00:19.8]} 37. Nc3 {[%clk 0:00:45.8]} 37... c6 {[%clk
0:00:19.7]} 38. Qf1 {[%clk 0:00:36.2]} 38... Rxg1 {[%clk 0:00:17.8]} 39. Qxg1
{[%clk 0:00:37.1]} 39... Qf7 {[%clk 0:00:17.4]} 40. Rf1 {[%clk 0:00:35.7]} 40...
Nd3 {[%clk 0:00:17.3]} 41. Bb6 {[%clk 0:00:32.9]} 41... Nac5 {[%clk 0:00:16.4]}
42. Nd1 {[%clk 0:00:21.1]} 42... cxd5 {[%clk 0:00:15.4]} 43. cxd5 {[%clk
0:00:20.4]} 43... Nc1+ {[%clk 0:00:15.5]} 44. Kb1 {[%clk 0:00:19.6]} 44... N5b3
{[%clk 0:00:13.5]} 45. Nxb3 {[%clk 0:00:19.4]} 45... Nxb3 {[%clk 0:00:14.4]} 46.
Nc3 {[%clk 0:00:18.4]} 46... Nd2+ {[%clk 0:00:11.9]} 47. Kc2 {[%clk 0:00:18.7]}
47... Nxf1 {[%clk 0:00:12.4]} 48. Qxf1 {[%clk 0:00:19.6]} 48... Bxh4 {[%clk
0:00:13.1]} 49. Nxa4 {[%clk 0:00:19.3]} 49... Bg5 {[%clk 0:00:13.5]} 50. Nc3
{[%clk 0:00:19.1]} 50... Qd7 {[%clk 0:00:13.6]} 51. a4 {[%clk 0:00:17.1]} 51...
Bg6 {[%clk 0:00:13.7]} 52. a5 {[%clk 0:00:16.3]} 52... h5 {[%clk 0:00:14]} 53.
b4 {[%clk 0:00:16.2]} 53... h4 {[%clk 0:00:14]} 54. b5 {[%clk 0:00:16.7]} 54...
h3 {[%clk 0:00:14.2]} 55. a6 {[%clk 0:00:17.3]} 55... bxa6 {[%clk 0:00:13.4]}
56. bxa6 {[%clk 0:00:18.2]} 56... Qc8 {[%clk 0:00:13.8]} 57. a7 {[%clk
0:00:18.4]} 57... Kg7 {[%clk 0:00:13.8]} 58. Bg1 {[%clk 0:00:17.6]} 58... Kh6
{[%clk 0:00:12.7]} 59. Qb5 {[%clk 0:00:17.5]} 59... Be8 {[%clk 0:00:09.8]} 60.
Qb8 {[%clk 0:00:16.8]} 60... Ba4+ {[%clk 0:00:08.6]} 61. Kb2 {[%clk 0:00:15.5]}
61... Qc4 {[%clk 0:00:07]} 62. a8=Q {[%clk 0:00:15.6]} 62... Bd7 {[%clk
0:00:05.3]} 63. Qh8+ {[%clk 0:00:15.2]} 63... Kg6 {[%clk 0:00:06]} 64. Qag8#
{[%clk 0:00:15.7]} 1-0